Workbook

Sheet DO_HT (hidden)
C6: Grupo | D6: Numero | E6: Abreviatura | G6: Etiquetas de fila
C7: Bimestral | D7: 2 | E7: Bim. | G7: 6
C8: Trimestral | D8: 3 | E8: Trim.
C9: Cuatrimestral | D9: 4 | E9: Cuat.
C10: Semestral | D10: 6 | E10: Sem.

Sheet DO_EERR (hidden)
C6: =IF(COLUMNS($C$6:C$6)<=12/DO_EERR!$N$6,COLUMNS($C$6:C$6),"") -> 1 | D6: =IF(COLUMNS($C$6:D$6)<=12/DO_EERR!$N$6,COLUMNS($C$6:D$6),"") -> 2 | E6: =IF(COLUMNS($C$6:E$6)<=12/DO_EERR!$N$6,COLUMNS($C$6:E$6),"") ->  | F6: =IF(COLUMNS($C$6:F$6)<=12/DO_EERR!$N$6,COLUMNS($C$6:F$6),"") ->  | G6: =IF(COLUMNS($C$6:G$6)<=12/DO_EERR!$N$6,COLUMNS($C$6:G$6),"") ->  | H6: =IF(COLUMNS($C$6:H$6)<=12/DO_EERR!$N$6,COLUMNS($C$6:H$6),"") ->  | N6: =DO_HT!G7 -> 6
C7: =IF(C6="","",VLOOKUP(DO_EERR!$N$6,DO_HT!$D$7:$E$10,2,0)&" "&C$6) -> Sem. 1 | D7: =IF(D6="","",VLOOKUP(DO_EERR!$N$6,DO_HT!$D$7:$E$10,2,0)&" "&D$6) -> Sem. 2 | E7: =IF(E6="","",VLOOKUP(DO_EERR!$N$6,DO_HT!$D$7:$E$10,2,0)&" "&E$6) ->  | F7: =IF(F6="","",VLOOKUP(DO_EERR!$N$6,DO_HT!$D$7:$E$10,2,0)&" "&F$6) ->  | G7: =IF(G6="","",VLOOKUP(DO_EERR!$N$6,DO_HT!$D$7:$E$10,2,0)&" "&G$6) ->  | H7: =IF(H6="","",VLOOKUP(DO_EERR!$N$6,DO_HT!$D$7:$E$10,2,0)&" "&H$6) ->  | M7: Fecha | N7: Agrupación | O7: Rubro | P7: Importe S/
C8: =SUMIFS(DO_EERR!$P$8:$P$115,DO_EERR!$O$8:$O$115,'EERR DINAMICO'!$E9,DO_EERR!$N$8:$N$115,C$6) -> 2,264,906 | D8: =SUMIFS(DO_EERR!$P$8:$P$115,DO_EERR!$O$8:$O$115,'EERR DINAMICO'!$E9,DO_EERR!$N$8:$N$115,D$6) -> 2,104,200 | E8: =SUMIFS(DO_EERR!$P$8:$P$115,DO_EERR!$O$8:$O$115,'EERR DINAMICO'!$E9,DO_EERR!$N$8:$N$115,E$6) -> 0 | F8: =SUMIFS(DO_EERR!$P$8:$P$115,DO_EERR!$O$8:$O$115,'EERR DINAMICO'!$E9,DO_EERR!$N$8:$N$115,F$6) -> 0 | G8: =SUMIFS(DO_EERR!$P$8:$P$115,DO_EERR!$O$8:$O$115,'EERR DINAMICO'!$E9,DO_EERR!$N$8:$N$115,G$6) -> 0 | H8: =SUMIFS(DO_EERR!$P$8:$P$115,DO_EERR!$O$8:$O$115,'EERR DINAMICO'!$E9,DO_EERR!$N$8:$N$115,H$6) -> 0 | M8: 2019-01-31 | N8: =ROUNDUP(MONTH(M8)/N$6,0) -> 1 | O8: Gastos de Personal, Directores y Gerentes | P8: 91,387.33
C9: =SUMIFS(DO_EERR!$P$8:$P$115,DO_EERR!$O$8:$O$115,'EERR DINAMICO'!$E10,DO_EERR!$N$8:$N$115,C$6) -> -1,138,147 | D9: =SUMIFS(DO_EERR!$P$8:$P$115,DO_EERR!$O$8:$O$115,'EERR DINAMICO'!$E10,DO_EERR!$N$8:$N$115,D$6) -> -1,057,390 | E9: =SUMIFS(DO_EERR!$P$8:$P$115,DO_EERR!$O$8:$O$115,'EERR DINAMICO'!$E10,DO_EERR!$N$8:$N$115,E$6) -> 0 | F9: =SUMIFS(DO_EERR!$P$8:$P$115,DO_EERR!$O$8:$O$115,'EERR DINAMICO'!$E10,DO_EERR!$N$8:$N$115,F$6) -> 0 | G9: =SUMIFS(DO_EERR!$P$8:$P$115,DO_EERR!$O$8:$O$115,'EERR DINAMICO'!$E10,DO_EERR!$N$8:$N$115,G$6) -> 0 | H9: =SUMIFS(DO_EERR!$P$8:$P$115,DO_EERR!$O$8:$O$115,'EERR DINAMICO'!$E10,DO_EERR!$N$8:$N$115,H$6) -> 0 | M9: 2019-01-31 | N9: 1 | O9: Gastos de Servicios Prestados por Terceros | P9: 208,555.77
C10: =SUMIFS(DO_EERR!$P$8:$P$115,DO_EERR!$O$8:$O$115,'EERR DINAMICO'!$E11,DO_EERR!$N$8:$N$115,C$6) -> -498,726 | D10: =SUMIFS(DO_EERR!$P$8:$P$115,DO_EERR!$O$8:$O$115,'EERR DINAMICO'!$E11,DO_EERR!$N$8:$N$115,D$6) -> -463,339 | E10: =SUMIFS(DO_EERR!$P$8:$P$115,DO_EERR!$O$8:$O$115,'EERR DINAMICO'!$E11,DO_EERR!$N$8:$N$115,E$6) -> 0 | F10: =SUMIFS(DO_EERR!$P$8:$P$115,DO_EERR!$O$8:$O$115,'EERR DINAMICO'!$E11,DO_EERR!$N$8:$N$115,F$6) -> 0 | G10: =SUMIFS(DO_EERR!$P$8:$P$115,DO_EERR!$O$8:$O$115,'EERR DINAMICO'!$E11,DO_EERR!$N$8:$N$115,G$6) -> 0 | H10: =SUMIFS(DO_EERR!$P$8:$P$115,DO_EERR!$O$8:$O$115,'EERR DINAMICO'!$E11,DO_EERR!$N$8:$N$115,H$6) -> 0 | M10: 2019-01-31 | N10: 1 | O10: Gastos Financieros | P10: 26,505.41
C11: =SUMIFS(DO_EERR!$P$8:$P$115,DO_EERR!$O$8:$O$115,'EERR DINAMICO'!$E12,DO_EERR!$N$8:$N$115,C$6) -> -2,440 | D11: =SUMIFS(DO_EERR!$P$8:$P$115,DO_EERR!$O$8:$O$115,'EERR DINAMICO'!$E12,DO_EERR!$N$8:$N$115,D$6) -> -2,267 | E11: =SUMIFS(DO_EERR!$P$8:$P$115,DO_EERR!$O$8:$O$115,'EERR DINAMICO'!$E12,DO_EERR!$N$8:$N$115,E$6) -> 0 | F11: =SUMIFS(DO_EERR!$P$8:$P$115,DO_EERR!$O$8:$O$115,'EERR DINAMICO'!$E12,DO_EERR!$N$8:$N$115,F$6) -> 0 | G11: =SUMIFS(DO_EERR!$P$8:$P$115,DO_EERR!$O$8:$O$115,'EERR DINAMICO'!$E12,DO_EERR!$N$8:$N$115,G$6) -> 0 | H11: =SUMIFS(DO_EERR!$P$8:$P$115,DO_EERR!$O$8:$O$115,'EERR DINAMICO'!$E12,DO_EERR!$N$8:$N$115,H$6) -> 0 | M11: 2019-01-31 | N11: 1 | O11: Gastos por Tributos | P11: 447.08
C12: =SUMIFS(DO_EERR!$P$8:$P$115,DO_EERR!$O$8:$O$115,'EERR DINAMICO'!$E13,DO_EERR!$N$8:$N$115,C$6) -> -53,384 | D12: =SUMIFS(DO_EERR!$P$8:$P$115,DO_EERR!$O$8:$O$115,'EERR DINAMICO'!$E13,DO_EERR!$N$8:$N$115,D$6) -> -49,596 | E12: =SUMIFS(DO_EERR!$P$8:$P$115,DO_EERR!$O$8:$O$115,'EERR DINAMICO'!$E13,DO_EERR!$N$8:$N$115,E$6) -> 0 | F12: =SUMIFS(DO_EERR!$P$8:$P$115,DO_EERR!$O$8:$O$115,'EERR DINAMICO'!$E13,DO_EERR!$N$8:$N$115,F$6) -> 0 | G12: =SUMIFS(DO_EERR!$P$8:$P$115,DO_EERR!$O$8:$O$115,'EERR DINAMICO'!$E13,DO_EERR!$N$8:$N$115,G$6) -> 0 | H12: =SUMIFS(DO_EERR!$P$8:$P$115,DO_EERR!$O$8:$O$115,'EERR DINAMICO'!$E13,DO_EERR!$N$8:$N$115,H$6) -> 0 | M12: 2019-01-31 | N12: 1 | O12: Ingresos Financieros | P12: -23,515.77
C13: =SUMIFS(DO_EERR!$P$8:$P$115,DO_EERR!$O$8:$O$115,'EERR DINAMICO'!$E14,DO_EERR!$N$8:$N$115,C$6) -> -117,541 | D13: =SUMIFS(DO_EERR!$P$8:$P$115,DO_EERR!$O$8:$O$115,'EERR DINAMICO'!$E14,DO_EERR!$N$8:$N$115,D$6) -> -109,201 | E13: =SUMIFS(DO_EERR!$P$8:$P$115,DO_EERR!$O$8:$O$115,'EERR DINAMICO'!$E14,DO_EERR!$N$8:$N$115,E$6) -> 0 | F13: =SUMIFS(DO_EERR!$P$8:$P$115,DO_EERR!$O$8:$O$115,'EERR DINAMICO'!$E14,DO_EERR!$N$8:$N$115,F$6) -> 0 | G13: =SUMIFS(DO_EERR!$P$8:$P$115,DO_EERR!$O$8:$O$115,'EERR DINAMICO'!$E14,DO_EERR!$N$8:$N$115,G$6) -> 0 | H13: =SUMIFS(DO_EERR!$P$8:$P$115,DO_EERR!$O$8:$O$115,'EERR DINAMICO'!$E14,DO_EERR!$N$8:$N$115,H$6) -> 0 | M13: 2019-01-31 | N13: 1 | O13: Otros Gastos de Gestion | P13: 9,782.08
C14: =SUMIFS(DO_EERR!$P$8:$P$115,DO_EERR!$O$8:$O$115,'EERR DINAMICO'!$E15,DO_EERR!$N$8:$N$115,C$6) -> 20,178 | D14: =SUMIFS(DO_EERR!$P$8:$P$115,DO_EERR!$O$8:$O$115,'EERR DINAMICO'!$E15,DO_EERR!$N$8:$N$115,D$6) -> 18,746 | E14: =SUMIFS(DO_EERR!$P$8:$P$115,DO_EERR!$O$8:$O$115,'EERR DINAMICO'!$E15,DO_EERR!$N$8:$N$115,E$6) -> 0 | F14: =SUMIFS(DO_EERR!$P$8:$P$115,DO_EERR!$O$8:$O$115,'EERR DINAMICO'!$E15,DO_EERR!$N$8:$N$115,F$6) -> 0 | G14: =SUMIFS(DO_EERR!$P$8:$P$115,DO_EERR!$O$8:$O$115,'EERR DINAMICO'!$E15,DO_EERR!$N$8:$N$115,G$6) -> 0 | H14: =SUMIFS(DO_EERR!$P$8:$P$115,DO_EERR!$O$8:$O$115,'EERR DINAMICO'!$E15,DO_EERR!$N$8:$N$115,H$6) -> 0 | M14: 2019-01-31 | N14: 1 | O14: Otros Ingresos de Gestión | P14: -3,697.42
C15: =SUMIFS(DO_EERR!$P$8:$P$115,DO_EERR!$O$8:$O$115,'EERR DINAMICO'!$E16,DO_EERR!$N$8:$N$115,C$6) -> 128,332 | D15: =SUMIFS(DO_EERR!$P$8:$P$115,DO_EERR!$O$8:$O$115,'EERR DINAMICO'!$E16,DO_EERR!$N$8:$N$115,D$6) -> 119,226 | E15: =SUMIFS(DO_EERR!$P$8:$P$115,DO_EERR!$O$8:$O$115,'EERR DINAMICO'!$E16,DO_EERR!$N$8:$N$115,E$6) -> 0 | F15: =SUMIFS(DO_EERR!$P$8:$P$115,DO_EERR!$O$8:$O$115,'EERR DINAMICO'!$E16,DO_EERR!$N$8:$N$115,F$6) -> 0 | G15: =SUMIFS(DO_EERR!$P$8:$P$115,DO_EERR!$O$8:$O$115,'EERR DINAMICO'!$E16,DO_EERR!$N$8:$N$115,G$6) -> 0 | H15: =SUMIFS(DO_EERR!$P$8:$P$115,DO_EERR!$O$8:$O$115,'EERR DINAMICO'!$E16,DO_EERR!$N$8:$N$115,H$6) -> 0 | M15: 2019-01-31 | N15: 1 | O15: Valuación y Deterioro de Activos y Provisiones | P15: 21,538.43
C16: =SUMIFS(DO_EERR!$P$8:$P$115,DO_EERR!$O$8:$O$115,'EERR DINAMICO'!$E17,DO_EERR!$N$8:$N$115,C$6) -> -144,647 | D16: =SUMIFS(DO_EERR!$P$8:$P$115,DO_EERR!$O$8:$O$115,'EERR DINAMICO'!$E17,DO_EERR!$N$8:$N$115,D$6) -> -134,384 | E16: =SUMIFS(DO_EERR!$P$8:$P$115,DO_EERR!$O$8:$O$115,'EERR DINAMICO'!$E17,DO_EERR!$N$8:$N$115,E$6) -> 0 | F16: =SUMIFS(DO_EERR!$P$8:$P$115,DO_EERR!$O$8:$O$115,'EERR DINAMICO'!$E17,DO_EERR!$N$8:$N$115,F$6) -> 0 | G16: =SUMIFS(DO_EERR!$P$8:$P$115,DO_EERR!$O$8:$O$115,'EERR DINAMICO'!$E17,DO_EERR!$N$8:$N$115,G$6) -> 0 | H16: =SUMIFS(DO_EERR!$P$8:$P$115,DO_EERR!$O$8:$O$115,'EERR DINAMICO'!$E17,DO_EERR!$N$8:$N$115,H$6) -> 0 | M16: 2019-01-31 | N16: 1 | O16: Ventas | P16: -415,024.88
C17: =SUM(C8:C16) -> 458,531 | D17: 425,996 | E17: 0 | F17: 0 | G17: 0 | H17: 0 | M17: 2019-02-28 | N17: 1 | O17: Gastos de Personal, Directores y Gerentes | P17: 59,984.28
M18: 2019-02-28 | N18: 1 | O18: Gastos de Servicios Prestados por Terceros | P18: 136,890.62
M19: 2019-02-28 | N19: 1 | O19: Gastos Financieros | P19: 17,397.46
M20: 2019-02-28 | N20: 1 | O20: Gastos por Tributos | P20: 293.44
M21: 2019-02-28 | N21: 1 | O21: Ingresos Financieros | P21: -15,435.14
M22: 2019-02-28 | N22: 1 | O22: Otros Gastos de Gestion | P22: 6,420.71
M23: 2019-02-28 | N23: 1 | O23: Otros Ingresos de Gestión | P23: -2,426.89
M24: 2019-02-28 | N24: 1 | O24: Valuación y Deterioro de Activos y Provisiones | P24: 14,137.27
M25: 2019-02-28 | N25: 1 | O25: Ventas | P25: -272,411.67
M26: 2019-03-31 | N26: 1 | O26: Gastos de Personal, Directores y Gerentes | P26: 96,554.83
M27: 2019-03-31 | N27: 1 | O27: Gastos de Servicios Prestados por Terceros | P27: 220,348.56
M28: 2019-03-31 | N28: 1 | O28: Gastos Financieros | P28: 28,004.15
M29: 2019-03-31 | N29: 1 | O29: Gastos por Tributos | P29: 472.35
M30: 2019-03-31 | N30: 1 | O30: Ingresos Financieros | P30: -24,845.46
M31: 2019-03-31 | N31: 1 | O31: Otros Gastos de Gestion | P31: 10,335.21
M32: 2019-03-31 | N32: 1 | O32: Otros Ingresos de Gestión | P32: -3,906.49
M33: 2019-03-31 | N33: 1 | O33: Valuación y Deterioro de Activos y Provisiones | P33: 22,756.32
M34: 2019-03-31 | N34: 1 | O34: Ventas | P34: -438,492.49
M35: 2019-04-30 | N35: 1 | O35: Gastos de Personal, Directores y Gerentes | P35: 83,921.19
M36: 2019-04-30 | N36: 1 | O36: Gastos de Servicios Prestados por Terceros | P36: 191,517.24
M37: 2019-04-30 | N37: 1 | O37: Gastos Financieros | P37: 24,339.98
M38: 2019-04-30 | N38: 1 | O38: Gastos por Tributos | P38: 410.55
M39: 2019-04-30 | N39: 1 | O39: Ingresos Financieros | P39: -21,594.58
M40: 2019-04-30 | N40: =ROUNDUP(MONTH(M40)/N$6,0) -> 1 | O40: Otros Gastos de Gestion | P40: 8,982.90
M41: 2019-04-30 | N41: 1 | O41: Otros Ingresos de Gestión | P41: -3,395.34
M42: 2019-04-30 | N42: 1 | O42: Valuación y Deterioro de Activos y Provisiones | P42: 19,778.78
M43: 2019-04-30 | N43: 1 | O43: Ventas | P43: -381,118.35
M44: 2019-05-31 | N44: 1 | O44: Gastos de Personal, Directores y Gerentes | P44: 107,739.80
M45: 2019-05-31 | N45: 1 | O45: Gastos de Servicios Prestados por Terceros | P45: 245,873.88
M46: 2019-05-31 | N46: 1 | O46: Gastos Financieros | P46: 31,248.18
M47: 2019-05-31 | N47: 1 | O47: Gastos por Tributos | P47: 527.07
M48: 2019-05-31 | N48: 1 | O48: Ingresos Financieros | P48: -27,723.58
M49: 2019-05-31 | N49: 1 | O49: Otros Gastos de Gestion | P49: 11,532.46
M50: 2019-05-31 | N50: 1 | O50: Otros Ingresos de Gestión | P50: -4,359.02
M51: 2019-05-31 | N51: 1 | O51: Valuación y Deterioro de Activos y Provisiones | P51: 25,392.42
M52: 2019-05-31 | N52: 1 | O52: Ventas | P52: -489,287.78
M53: 2019-06-30 | N53: 1 | O53: Gastos de Personal, Directores y Gerentes | P53: 59,138.60
M54: 2019-06-30 | N54: 1 | O54: Gastos de Servicios Prestados por Terceros | P54: 134,960.71
M55: 2019-06-30 | N55: 1 | O55: Gastos Financieros | P55: 17,152.19
M56: 2019-06-30 | N56: 1 | O56: Gastos por Tributos | P56: 289.31
M57: 2019-06-30 | N57: 1 | O57: Ingresos Financieros | P57: -15,217.53
M58: 2019-06-30 | N58: 1 | O58: Otros Gastos de Gestion | P58: 6,330.19
M59: 2019-06-30 | N59: 1 | O59: Otros Ingresos de Gestión | P59: -2,392.67
M60: 2019-06-30 | N60: 1 | O60: Valuación y Deterioro de Activos y Provisiones | P60: 13,937.96
M61: 2019-06-30 | N61: 1 | O61: Ventas | P61: -268,571.12
M62: 2019-07-31 | N62: 2 | O62: Gastos de Personal, Directores y Gerentes | P62: 60,645.31
M63: 2019-07-31 | N63: 2 | O63: Gastos de Servicios Prestados por Terceros | P63: 138,399.17
M64: 2019-07-31 | N64: 2 | O64: Gastos Financieros | P64: 17,589.19
M65: 2019-07-31 | N65: 2 | O65: Gastos por Tributos | P65: 296.68
M66: 2019-07-31 | N66: 2 | O66: Ingresos Financieros | P66: -15,605.24
M67: 2019-07-31 | N67: 2 | O67: Otros Gastos de Gestion | P67: 6,491.47
M68: 2019-07-31 | N68: 2 | O68: Otros Ingresos de Gestión | P68: -2,453.64
M69: 2019-07-31 | N69: 2 | O69: Valuación y Deterioro de Activos y Provisiones | P69: 14,293.06
M70: 2019-07-31 | N70: 2 | O70: Ventas | P70: -275,413.62
M71: 2019-08-31 | N71: 2 | O71: Gastos de Personal, Directores y Gerentes | P71: 86,145.27
M72: 2019-08-31 | N72: =ROUNDUP(MONTH(M72)/N$6,0) -> 2 | O72: Gastos de Servicios Prestados por Terceros | P72: 196,592.84
M73: 2019-08-31 | N73: 2 | O73: Gastos Financieros | P73: 24,985.04
M74: 2019-08-31 | N74: 2 | O74: Gastos por Tributos | P74: 421.43
M75: 2019-08-31 | N75: 2 | O75: Ingresos Financieros | P75: -22,166.88
M76: 2019-08-31 | N76: 2 | O76: Otros Gastos de Gestion | P76: 9,220.99
M77: 2019-08-31 | N77: 2 | O77: Otros Ingresos de Gestión | P77: -3,485.33
M78: 2019-08-31 | N78: 2 | O78: Valuación y Deterioro de Activos y Provisiones | P78: 20,302.95
M79: 2019-08-31 | N79: 2 | O79: Ventas | P79: -391,218.77
M80: 2019-09-30 | N80: 2 | O80: Gastos de Personal, Directores y Gerentes | P80: 107,544.07
M81: 2019-09-30 | N81: 2 | O81: Gastos de Servicios Prestados por Terceros | P81: 245,427.23
M82: 2019-09-30 | N82: 2 | O82: Gastos Financieros | P82: 31,191.41
M83: 2019-09-30 | N83: 2 | O83: Gastos por Tributos | P83: 526.11
M84: 2019-09-30 | N84: 2 | O84: Ingresos Financieros | P84: -27,673.22
M85: 2019-09-30 | N85: 2 | O85: Otros Gastos de Gestion | P85: 11,511.51
M86: 2019-09-30 | N86: 2 | O86: Otros Ingresos de Gestión | P86: -4,351.10
M87: 2019-09-30 | N87: 2 | O87: Valuación y Deterioro de Activos y Provisiones | P87: 25,346.29
M88: 2019-09-30 | N88: 2 | O88: Ventas | P88: -488,398.92
M89: 2019-10-31 | N89: 2 | O89: Gastos de Personal, Directores y Gerentes | P89: 69,039.40
M90: 2019-10-31 | N90: 2 | O90: Gastos de Servicios Prestados por Terceros | P90: 157,555.43
M91: 2019-10-31 | N91: 2 | O91: Gastos Financieros | P91: 20,023.76
M92: 2019-10-31 | N92: 2 | O92: Gastos por Tributos | P92: 337.75
M93: 2019-10-31 | N93: 2 | O93: Ingresos Financieros | P93: -17,765.20
M94: 2019-10-31 | N94: 2 | O94: Otros Gastos de Gestion | P94: 7,389.97
M95: 2019-10-31 | N95: 2 | O95: Otros Ingresos de Gestión | P95: -2,793.25
M96: 2019-10-31 | N96: 2 | O96: Valuación y Deterioro de Activos y Provisiones | P96: 16,271.40
M97: 2019-10-31 | N97: 2 | O97: Ventas | P97: -313,534.50
M98: 2019-11-30 | N98: 2 | O98: Gastos de Personal, Directores y Gerentes | P98: 76,712.58
M99: 2019-11-30 | N99: 2 | O99: Gastos de Servicios Prestados por Terceros | P99: 175,066.44
M100: 2019-11-30 | N100: 2 | O100: Gastos Financieros | P100: 22,249.24
M101: 2019-11-30 | N101: 2 | O101: Gastos por Tributos | P101: 375.29
M102: 2019-11-30 | N102: 2 | O102: Ingresos Financieros | P102: -19,739.67
M103: 2019-11-30 | N103: 2 | O103: Otros Gastos de Gestion | P103: 8,211.30
M104: 2019-11-30 | N104: =ROUNDUP(MONTH(M104)/N$6,0) -> 2 | O104: Otros Ingresos de Gestión | P104: -3,103.70
M105: 2019-11-30 | N105: 2 | O105: Valuación y Deterioro de Activos y Provisiones | P105: 18,079.84
M106: 2019-11-30 | N106: 2 | O106: Ventas | P106: -348,381.29
M107: 2019-12-31 | N107: 2 | O107: Gastos de Personal, Directores y Gerentes | P107: 63,252.34
M108: 2019-12-31 | N108: 2 | O108: Gastos de Servicios Prestados por Terceros | P108: 144,348.69
M109: 2019-12-31 | N109: 2 | O109: Gastos Financieros | P109: 18,345.32
M110: 2019-12-31 | N110: 2 | O110: Gastos por Tributos | P110: 309.44
M111: 2019-12-31 | N111: 2 | O111: Ingresos Financieros | P111: -16,276.08
M112: 2019-12-31 | N112: 2 | O112: Otros Gastos de Gestion | P112: 6,770.52
M113: 2019-12-31 | N113: 2 | O113: Otros Ingresos de Gestión | P113: -2,559.11
M114: 2019-12-31 | N114: 2 | O114: Valuación y Deterioro de Activos y Provisiones | P114: 14,907.49
M115: 2019-12-31 | N115: 2 | O115: Ventas | P115: -287,253.11

Sheet DATA
B1: Estado de resultados comparativo • dinámico
B2: MOS Expert CPC Martín Cruz • +51 998 401 784 | Excel No Convencional
C6: Fecha | D6: Rubro | E6: Importe S/
C7: 2019-01-31 | D7: Gastos de Personal, Directores y Gerentes | E7: 91387.33
C8: 2019-01-31 | D8: Gastos de Servicios Prestados por Terceros | E8: 208555.77
C9: 2019-01-31 | D9: Gastos Financieros | E9: 26505.41
C10: 2019-01-31 | D10: Gastos por Tributos | E10: 447.08
C11: 2019-01-31 | D11: Ingresos Financieros | E11: -23515.77
C12: 2019-01-31 | D12: Otros Gastos de Gestion | E12: 9782.08
C13: 2019-01-31 | D13: Otros Ingresos de Gestión | E13: -3697.42
C14: 2019-01-31 | D14: Valuación y Deterioro de Activos y Provisiones | E14: 21538.43
C15: 2019-01-31 | D15: Ventas | E15: -415024.88
C16: 2019-02-28 | D16: Gastos de Personal, Directores y Gerentes | E16: 59984.28
C17: 2019-02-28 | D17: Gastos de Servicios Prestados por Terceros | E17: 136890.62
C18: 2019-02-28 | D18: Gastos Financieros | E18: 17397.46
C19: 2019-02-28 | D19: Gastos por Tributos | E19: 293.44
C20: 2019-02-28 | D20: Ingresos Financieros | E20: -15435.14
C21: 2019-02-28 | D21: Otros Gastos de Gestion | E21: 6420.71
C22: 2019-02-28 | D22: Otros Ingresos de Gestión | E22: -2426.89
C23: 2019-02-28 | D23: Valuación y Deterioro de Activos y Provisiones | E23: 14137.27
C24: 2019-02-28 | D24: Ventas | E24: -272411.67
C25: 2019-03-31 | D25: Gastos de Personal, Directores y Gerentes | E25: 96554.83
C26: 2019-03-31 | D26: Gastos de Servicios Prestados por Terceros | E26: 220348.56
C27: 2019-03-31 | D27: Gastos Financieros | E27: 28004.15
C28: 2019-03-31 | D28: Gastos por Tributos | E28: 472.35
C29: 2019-03-31 | D29: Ingresos Financieros | E29: -24845.46
C30: 2019-03-31 | D30: Otros Gastos de Gestion | E30: 10335.21
C31: 2019-03-31 | D31: Otros Ingresos de Gestión | E31: -3906.49
C32: 2019-03-31 | D32: Valuación y Deterioro de Activos y Provisiones | E32: 22756.32
C33: 2019-03-31 | D33: Ventas | E33: -438492.49
C34: 2019-04-30 | D34: Gastos de Personal, Directores y Gerentes | E34: 83921.19
C35: 2019-04-30 | D35: Gastos de Servicios Prestados por Terceros | E35: 191517.24
C36: 2019-04-30 | D36: Gastos Financieros | E36: 24339.98
C37: 2019-04-30 | D37: Gastos por Tributos | E37: 410.55
C38: 2019-04-30 | D38: Ingresos Financieros | E38: -21594.58
C39: 2019-04-30 | D39: Otros Gastos de Gestion | E39: 8982.9
C40: 2019-04-30 | D40: Otros Ingresos de Gestión | E40: -3395.34
C41: 2019-04-30 | D41: Valuación y Deterioro de Activos y Provisiones | E41: 19778.78
C42: 2019-04-30 | D42: Ventas | E42: -381118.35
C43: 2019-05-31 | D43: Gastos de Personal, Directores y Gerentes | E43: 107739.8
C44: 2019-05-31 | D44: Gastos de Servicios Prestados por Terceros | E44: 245873.88
C45: 2019-05-31 | D45: Gastos Financieros | E45: 31248.18
C46: 2019-05-31 | D46: Gastos por Tributos | E46: 527.07
C47: 2019-05-31 | D47: Ingresos Financieros | E47: -27723.58
C48: 2019-05-31 | D48: Otros Gastos de Gestion | E48: 11532.46
C49: 2019-05-31 | D49: Otros Ingresos de Gestión | E49: -4359.02
C50: 2019-05-31 | D50: Valuación y Deterioro de Activos y Provisiones | E50: 25392.42
C51: 2019-05-31 | D51: Ventas | E51: -489287.78
C52: 2019-06-30 | D52: Gastos de Personal, Directores y Gerentes | E52: 59138.6
C53: 2019-06-30 | D53: Gastos de Servicios Prestados por Terceros | E53: 134960.71
C54: 2019-06-30 | D54: Gastos Financieros | E54: 17152.19
C55: 2019-06-30 | D55: Gastos por Tributos | E55: 289.31
C56: 2019-06-30 | D56: Ingresos Financieros | E56: -15217.53
C57: 2019-06-30 | D57: Otros Gastos de Gestion | E57: 6330.19
C58: 2019-06-30 | D58: Otros Ingresos de Gestión | E58: -2392.67
C59: 2019-06-30 | D59: Valuación y Deterioro de Activos y Provisiones | E59: 13937.96
C60: 2019-06-30 | D60: Ventas | E60: -268571.12
C61: 2019-07-31 | D61: Gastos de Personal, Directores y Gerentes | E61: 60645.31
C62: 2019-07-31 | D62: Gastos de Servicios Prestados por Terceros | E62: 138399.17
C63: 2019-07-31 | D63: Gastos Financieros | E63: 17589.19
C64: 2019-07-31 | D64: Gastos por Tributos | E64: 296.68
C65: 2019-07-31 | D65: Ingresos Financieros | E65: -15605.24
C66: 2019-07-31 | D66: Otros Gastos de Gestion | E66: 6491.47
C67: 2019-07-31 | D67: Otros Ingresos de Gestión | E67: -2453.64
C68: 2019-07-31 | D68: Valuación y Deterioro de Activos y Provisiones | E68: 14293.06
C69: 2019-07-31 | D69: Ventas | E69: -275413.62
C70: 2019-08-31 | D70: Gastos de Personal, Directores y Gerentes | E70: 86145.27
C71: 2019-08-31 | D71: Gastos de Servicios Prestados por Terceros | E71: 196592.84
C72: 2019-08-31 | D72: Gastos Financieros | E72: 24985.04
C73: 2019-08-31 | D73: Gastos por Tributos | E73: 421.43
C74: 2019-08-31 | D74: Ingresos Financieros | E74: -22166.88
C75: 2019-08-31 | D75: Otros Gastos de Gestion | E75: 9220.99
C76: 2019-08-31 | D76: Otros Ingresos de Gestión | E76: -3485.33
C77: 2019-08-31 | D77: Valuación y Deterioro de Activos y Provisiones | E77: 20302.95
C78: 2019-08-31 | D78: Ventas | E78: -391218.77
C79: 2019-09-30 | D79: Gastos de Personal, Directores y Gerentes | E79: 107544.07
C80: 2019-09-30 | D80: Gastos de Servicios Prestados por Terceros | E80: 245427.23
C81: 2019-09-30 | D81: Gastos Financieros | E81: 31191.41
C82: 2019-09-30 | D82: Gastos por Tributos | E82: 526.11
C83: 2019-09-30 | D83: Ingresos Financieros | E83: -27673.22
C84: 2019-09-30 | D84: Otros Gastos de Gestion | E84: 11511.51
C85: 2019-09-30 | D85: Otros Ingresos de Gestión | E85: -4351.1
C86: 2019-09-30 | D86: Valuación y Deterioro de Activos y Provisiones | E86: 25346.29
C87: 2019-09-30 | D87: Ventas | E87: -488398.92
C88: 2019-10-31 | D88: Gastos de Personal, Directores y Gerentes | E88: 69039.4
C89: 2019-10-31 | D89: Gastos de Servicios Prestados por Terceros | E89: 157555.43
C90: 2019-10-31 | D90: Gastos Financieros | E90: 20023.76
C91: 2019-10-31 | D91: Gastos por Tributos | E91: 337.75
C92: 2019-10-31 | D92: Ingresos Financieros | E92: -17765.2
C93: 2019-10-31 | D93: Otros Gastos de Gestion | E93: 7389.97
C94: 2019-10-31 | D94: Otros Ingresos de Gestión | E94: -2793.25
C95: 2019-10-31 | D95: Valuación y Deterioro de Activos y Provisiones | E95: 16271.4
C96: 2019-10-31 | D96: Ventas | E96: -313534.5
C97: 2019-11-30 | D97: Gastos de Personal, Directores y Gerentes | E97: 76712.58
C98: 2019-11-30 | D98: Gastos de Servicios Prestados por Terceros | E98: 175066.44
C99: 2019-11-30 | D99: Gastos Financieros | E99: 22249.24
C100: 2019-11-30 | D100: Gastos por Tributos | E100: 375.29
C101: 2019-11-30 | D101: Ingresos Financieros | E101: -19739.67
C102: 2019-11-30 | D102: Otros Gastos de Gestion | E102: 8211.3
C103: 2019-11-30 | D103: Otros Ingresos de Gestión | E103: -3103.7
C104: 2019-11-30 | D104: Valuación y Deterioro de Activos y Provisiones | E104: 18079.84
C105: 2019-11-30 | D105: Ventas | E105: -348381.29
C106: 2019-12-31 | D106: Gastos de Personal, Directores y Gerentes | E106: 63252.34
C107: 2019-12-31 | D107: Gastos de Servicios Prestados por Terceros | E107: 144348.69
C108: 2019-12-31 | D108: Gastos Financieros | E108: 18345.32
C109: 2019-12-31 | D109: Gastos por Tributos | E109: 309.44
C110: 2019-12-31 | D110: Ingresos Financieros | E110: -16276.08
C111: 2019-12-31 | D111: Otros Gastos de Gestion | E111: 6770.52
C112: 2019-12-31 | D112: Otros Ingresos de Gestión | E112: -2559.11
C113: 2019-12-31 | D113: Valuación y Deterioro de Activos y Provisiones | E113: 14907.49
C114: 2019-12-31 | D114: Ventas | E114: -287253.11

Sheet EERR DINAMICO
B1: Estado de resultados comparativo • dinámico
B2: MOS Expert CPC Martín Cruz • +51 998 401 784 | Excel No Convencional
E5: Estado de resultados comparativo
F7: =lista01.01 -> 1 | G7: 2
E8: Rubros | F8: Sem. 1 | G8: Sem. 2
E9: Ventas | F9: 2,264,906 | G9: 2,104,200 | H9: 0 | I9: 0 | J9: 0 | K9: 0
E10: Gastos de Servicios Prestados por Terceros | F10: -1,138,147 | G10: -1,057,390 | H10: 0 | I10: 0 | J10: 0 | K10: 0
E11: Gastos de Personal, Directores y Gerentes | F11: -498,726 | G11: -463,339 | H11: 0 | I11: 0 | J11: 0 | K11: 0
E12: Gastos por Tributos | F12: -2,440 | G12: -2,267 | H12: 0 | I12: 0 | J12: 0 | K12: 0
E13: Otros Gastos de Gestion | F13: -53,384 | G13: -49,596 | H13: 0 | I13: 0 | J13: 0 | K13: 0
E14: Valuación y Deterioro de Activos y Provisiones | F14: -117,541 | G14: -109,201 | H14: 0 | I14: 0 | J14: 0 | K14: 0
E15: Otros Ingresos de Gestión | F15: 20,178 | G15: 18,746 | H15: 0 | I15: 0 | J15: 0 | K15: 0
E16: Ingresos Financieros | F16: 128,332 | G16: 119,226 | H16: 0 | I16: 0 | J16: 0 | K16: 0
E17: Gastos Financieros | F17: -144,647 | G17: -134,384 | H17: 0 | I17: 0 | J17: 0 | K17: 0
E18: Resultado Neto | F18: 458,531 | G18: 425,996 | H18: 0 | I18: 0 | J18: 0 | K18: 0
